fUST/lending_fUST_20250128
["ID","MTS","AMOUNT","RATE_DAILY","PERIOD"]
[350669645,1738049433034,-151.0,0.00020629,2]
[350669646,1738049433044,-151.0,0.00020629,2]
[350669647,1738049433054,-170.020443,0.00020676,2]
[350669648,1738049433063,-170.020443,0.00020676,2]
[350669649,1738049433073,-831.18046218,0.00020676,2]
[350669650,1738049433083,-831.18046218,0.00020776,2]
[350669651,1738049433093,-831.18046218,0.00020876,2]
[350669652,1738049433102,-151.0,0.000209,3]
[350669653,1738049433112,-151.0,0.000209,4]
[350669654,1738049433121,-831.18046218,0.00020976,2]
[350669655,1738049433131,-160.0,0.00020999,2]
[350669656,1738049433141,-528.83801138,0.00020999,2]
[350669657,1738049433150,-1000.0,0.00021,21]
[350669658,1738049433160,-1239.617665,0.00021,2]
[350669659,1738049433170,-454432.97390305,0.00021,2]
[350669660,1738049433180,-6020.39461979,0.00021,5]
[350669661,1738049433190,-170.020443,0.00021,2]
[350669662,1738049433203,-170.020443,0.00021,2]
[350669663,1738049433212,-151.0,0.00021,2]
[350669664,1738049433222,-500.0,0.00021016,2]
[350669665,1738049433232,-500.0,0.00021016,2]
[350669666,1738049433242,-831.18046218,0.00021076,2]
[350669667,1738049433251,-831.18046218,0.00021176,2]
[350669668,1738049433261,-783.1667587,0.00021185,2]
[350669669,1738049433272,-290.01,0.000212,2]
[350669670,1738049433282,-159.0,0.00021212,2]
[350669671,1738049433292,-159.0,0.00021212,2]
[350669672,1738049433303,-151.0,0.0002122,2]
[350669673,1738049433312,-160.0,0.00021257,3]
[350669674,1738049433321,-151.0,0.00021263,2]
[350669675,1738049433331,-831.18046218,0.00021276,2]
[350669676,1738049433341,-160.0,0.00021299,2]
[350669677,1738049433350,-152.15782,0.000213,2]
[350669678,1738049433360,-151.0,0.000213,2]
[350669679,1738049433369,-151.0,0.000213,2]
[350669680,1738049433379,-152.052962,0.000213,2]
[350669681,1738049433388,-151.0,0.000213,2]
[350669682,1738049433398,-184.352006,0.000213,2]
[350669683,1738049433407,-184.352006,0.000213,2]
[350669684,1738049433416,-151.0,0.000213,2]
[350669685,1738049433425,-151.0,0.000213,2]
[350669686,1738049433435,-151.0,0.000213,2]
[350669687,1738049433444,-151.0,0.000213,2]
[350669688,1738049433453,-151.0,0.000213,2]
[350669689,1738049433463,-151.0,0.000213,2]
[350669690,1738049433472,-151.0,0.000213,2]
[350669691,1738049433481,-151.0,0.000213,2]
[350669692,1738049433490,-151.0,0.000213,2]
[350669693,1738049433500,-151.0,0.000213,2]
[350669694,1738049433510,-207.025353,0.000213,2]
[350669695,1738049433519,-1139.25941701,0.000213,2]
[350669696,1738049433529,-207.025353,0.000213,2]
[350669697,1738049433539,-151.0,0.00021343,2]
[350669698,1738049433548,-998.53445169,0.00021365,2]
[350669699,1738049433558,-500.0,0.00021373,2]
[350669700,1738049433567,-831.18046218,0.00021376,2]
[350669701,1738049433577,-208.607691,0.00021398,2]
[350669702,1738049433586,-160.0,0.00021399,2]
[350669703,1738049433595,-160.0,0.00021399,2]
[350669704,1738049433605,-185499.04659925,0.000214,15]
[350669705,1738049433618,-62902.80995411,0.000214,15]
[350669782,1738049446034,-270.44207629,0.00016574,2]
[350669783,1738049446044,-243.56249874,0.00016574,2]
[350669784,1738049446053,-11564.06558661,0.00021,5]
[350669786,1738049664481,-553.93859,0.00016438,2]
[350669787,1738049664504,-553.93859,0.00016438,2]
[350669788,1738049664527,-553.93859,0.00016438,2]
[350669789,1738049664549,-553.93859,0.00016438,2]
[350669790,1738049664572,-553.93859,0.00016438,2]
[350669791,1738049664594,-553.93859,0.00016438,2]
[350669792,1738049664714,-151.0,0.00016438,2]
[350669793,1738049664738,-151.0,0.00016438,2]
[350669794,1738049664760,-151.0,0.00016438,2]
[350669795,1738049664782,-151.0,0.00016438,2]
[350669796,1738049664804,-174.18498,0.00016438,2]
[350669797,1738049664826,-500.0,0.00016438,2]
[350669798,1738049664848,-151.0,0.00016438,2]
[350669799,1738049664869,-151.0,0.00016438,2]
[350669800,1738049664892,-151.0,0.00016438,2]
[350669801,1738049664913,-507.8524113,0.00016438,2]
[350669802,1738049664934,-500.0,0.00016438,2]
[350669803,1738049664957,-500.0,0.00016438,2]
[350669804,1738049664981,-500.0,0.00016438,2]
[350669805,1738049665004,-503.05477664,0.00016438,2]
[350669806,1738049665025,-500.0,0.00016438,2]
[350669807,1738049665046,-151.0,0.00016438,2]
[350669808,1738049665068,-151.0,0.00016438,2]
[350669809,1738049665089,-151.0,0.00016438,2]
[350669810,1738049665110,-500.0,0.00016438,2]
[350669811,1738049665133,-2258.58,0.00016438,2]
[350669812,1738049665154,-500.0,0.00016438,2]
[350669813,1738049665176,-500.0,0.00016438,2]
[350669814,1738049665201,-1068.27,0.00016438,2]
[350669815,1738049665224,-500.0,0.00016438,2]
[350669816,1738049665245,-500.0,0.00016438,2]
[350669817,1738049665268,-500.0,0.00016438,2]
[350669818,1738049665292,-500.59391128,0.00016438,2]
[350669819,1738049665314,-501.61573054,0.00016438,2]
[350669820,1738049665337,-500.0,0.00016438,2]
[350669821,1738049665360,-151.0,0.00016438,2]
[350669822,1738049665383,-500.0,0.00016438,2]
[350669823,1738049665404,-502.55304553,0.00016438,2]
[350669824,1738049665426,-509.73929092,0.00016438,2]
[350669825,1738049665447,-507.4194914,0.00016438,2]
[350669826,1738049665470,-503.05234751,0.00016438,2]
[350669827,1738049665495,-1708.31,0.00016438,2]
[350669828,1738049665517,-441.73218094,0.00016474,2]
[350669829,1738049665540,-500.0,0.00016574,2]
[350669830,1738049665562,-500.0,0.00016574,2]
[350669831,1738049665585,-504.55606917,0.00016574,2]
[350669832,1738049665607,-500.0,0.00016574,2]
[350669833,1738049665628,-500.0,0.00016574,2]
[350669834,1738049665649,-500.0,0.00016574,2]
[350669835,1738049665671,-500.0,0.00016574,2]
[350669836,1738049665693,-500.0,0.00016574,2]
[350669837,1738049665715,-402.06420685,0.00016574,2]
[350669838,1738049665737,-500.0,0.00016574,2]
[350669839,1738049665764,-500.0,0.00016574,2]
[350669840,1738049665793,-500.0,0.00016574,2]
[350669841,1738049665817,-500.0,0.00016574,2]
[350669842,1738049665845,-500.0,0.00016574,2]
[350669843,1738049665872,-500.0,0.00016574,2]
[350669844,1738049665899,-503.90252617,0.00016574,2]
[350669845,1738049665928,-500.0,0.00016574,2]
[350669846,1738049665955,-503.07504202,0.00016574,2]
[350669847,1738049665984,-296.43644015,0.00016574,2]
[350669848,1738049666010,-500.0,0.00016574,2]
[350669849,1738049666033,-500.0,0.00016574,2]
[350669850,1738049666059,-500.0,0.00016574,2]
[350669851,1738049666087,-500.0,0.00016574,2]
[350669852,1738049666114,-500.0,0.00016574,2]
[350669853,1738049666142,-500.0,0.00016574,2]
[350669854,1738049666170,-500.0,0.00016574,2]
[350669855,1738049666194,-176.82274771,0.00016574,2]
[350669856,1738049666220,-500.0,0.00016574,2]
[350669857,1738049666250,-500.0,0.00016574,2]
[350669858,1738049666277,-500.0,0.00016574,2]
[350669859,1738049666305,-500.0,0.00016574,2]
[350669860,1738049666332,-500.0,0.00016574,2]
[350669861,1738049666356,-500.0,0.00016574,2]
[350669862,1738049666382,-500.0,0.00016574,2]
[350669863,1738049666408,-500.0,0.00016574,2]
[350669864,1738049666435,-503.35910352,0.00016574,2]
[350669865,1738049666459,-500.0,0.00016574,2]
[350669866,1738049666485,-500.0,0.00016574,2]
[350669867,1738049666510,-500.0,0.00016574,2]
[350669868,1738049666535,-509.24865344,0.00016574,2]
[350669869,1738049666560,-500.0,0.00016574,2]
[350669870,1738049666585,-500.0,0.00016574,2]
[350669871,1738049666610,-500.0,0.00016574,2]
[350669872,1738049666634,-500.0,0.00016574,2]
[350669873,1738049666659,-500.0,0.00016574,2]
[350669874,1738049666684,-553.93859,0.00016575,2]
[350669875,1738049666709,-553.93859,0.00016575,2]
[350669876,1738049666733,-500.0,0.00016575,2]
[350669877,1738049666759,-2258.58,0.00016575,2]
[350669878,1738049666783,-1068.27,0.00016575,2]
[350669879,1738049666805,-500.0,0.00016575,2]
[350669880,1738049666828,-500.0,0.00016575,2]
[350669881,1738049666853,-1708.31,0.00016575,2]
[350669882,1738049666874,-151.0,0.00016629,2]
[350669883,1738049666896,-151.0,0.00016629,2]
[350669884,1738049666917,-155.419506,0.00016629,2]
[350669885,1738049666940,-500.0,0.00016711,2]
[350669886,1738049667095,-500.0,0.00016711,2]
[350669887,1738049667118,-500.0,0.00016711,2]
[350669888,1738049667141,-500.0,0.00016711,2]
[350669889,1738049667165,-2258.58,0.00016712,2]
[350669890,1738049667191,-1068.27,0.00016712,2]
[350669891,1738049667215,-500.0,0.00016712,2]
[350669892,1738049667238,-500.0,0.00016712,2]
[350669893,1738049667264,-1708.31,0.00016712,2]
[350669894,1738049667290,-500.0,0.00016848,2]
[350669895,1738049667312,-500.0,0.00016848,2]
[350669896,1738049667334,-500.0,0.00016848,2]
[350669897,1738049667357,-500.0,0.00016848,2]
[350669898,1738049667383,-2258.58,0.00016849,2]
[350669899,1738049667408,-1068.27,0.00016849,2]
[350669900,1738049667431,-500.0,0.00016849,2]
[350669901,1738049667455,-500.0,0.00016849,2]
[350669902,1738049667481,-1708.31,0.00016849,2]
[350669903,1738049667502,-500.0,0.00016914,2]
[350669904,1738049667524,-500.0,0.00016914,2]
[350669905,1738049667546,-500.0,0.00016985,2]
[350669906,1738049667568,-500.0,0.00016985,2]
[350669907,1738049667590,-500.0,0.00016985,2]
[350669908,1738049667612,-500.0,0.00016985,2]
[350669909,1738049667637,-2258.58,0.00016986,2]
[350669910,1738049667662,-1068.27,0.00016986,2]
[350669911,1738049667685,-500.0,0.00016986,2]
[350669912,1738049667708,-500.0,0.00016986,2]
[350669913,1738049667732,-1708.31,0.00016986,2]
[350669914,1738049667754,-500.0,0.00017122,2]
[350669915,1738049667776,-500.0,0.00017122,2]
[350669916,1738049667798,-500.0,0.00017122,2]
[350669917,1738049667820,-500.0,0.00017122,2]
[350669918,1738049667844,-2258.58,0.00017123,2]
[350669919,1738049667870,-1068.27,0.00017123,2]
[350669920,1738049667892,-500.0,0.00017123,2]
[350669921,1738049667916,-500.0,0.00017123,2]
[350669922,1738049667940,-1708.31,0.00017123,2]
[350669923,1738049667961,-159.00114575,0.00017259,2]
[350669924,1738049667983,-500.0,0.00017259,2]
[350669925,1738049668005,-500.0,0.00017259,2]
[350669926,1738049668027,-500.0,0.00017259,2]
[350669927,1738049668050,-2258.58,0.0001726,2]
[350669928,1738049668074,-1068.27,0.0001726,2]
[350669929,1738049668097,-500.0,0.0001726,2]
[350669930,1738049668119,-500.0,0.0001726,2]
[350669931,1738049668140,-441.7321809,0.00017366,2]
[350669932,1738049668162,-500.0,0.00017396,2]
[350669933,1738049668184,-500.0,0.00017396,2]
[350669934,1738049668205,-500.0,0.00017396,2]
[350669935,1738049668231,-2258.58,0.00017397,2]
[350669936,1738049668257,-1068.27,0.00017397,2]
[350669937,1738049668281,-500.0,0.00017397,2]
[350669938,1738049668305,-500.0,0.00017462,2]
[350669939,1738049668330,-2258.58,0.00017534,2]
[350669940,1738049668355,-1068.27,0.00017534,2]
[350669941,1738049668382,-500.0,0.00017534,2]
[350669942,1738049668405,-2258.58,0.00017671,2]
[350669943,1738049668430,-1068.27,0.00017671,2]
[350669944,1738049668453,-500.0,0.00017671,2]
[350669945,1738049668477,-2258.58,0.00017808,2]
[350669946,1738049668503,-1068.27,0.00017808,2]
[350669947,1738049668527,-500.0,0.00017808,2]
[350669948,1738049668552,-1796.86549226,0.00017945,2]
[350669949,1738049707850,6467.17980437,0.00015101,2]
[350669950,1738049778282,-253.30060754,0.00016438,2]
[350669951,1738049778304,-500.0,0.00016438,2]
[350669952,1738049778329,-300.0,0.00016573,2]
[350669953,1738049778352,-500.0,0.00016574,2]
[350669954,1738049778375,-500.0,0.00016574,2]
[350669955,1738049778397,-500.0,0.00016574,2]
[350669956,1738049778419,-500.0,0.00016574,2]
[350669957,1738049778442,-500.0,0.00016574,2]
[350669958,1738049778463,-504.32961771,0.00016574,2]
[350669959,1738049778485,-500.0,0.00016574,2]
[350669960,1738049778507,-193.74686922,0.00016574,2]
[350669961,1738049778529,-376.59790935,0.00016574,2]
[350669962,1738049778551,-500.0,0.00016574,2]
[350669963,1738049778575,-500.0,0.00016574,2]
[350669964,1738049778596,-502.55305468,0.00016574,2]
[350669965,1738049778617,-500.0,0.00016574,2]
[350669966,1738049778639,-500.0,0.00016574,2]
[350669967,1738049778661,-500.0,0.00016574,2]
[350669968,1738049778682,-527.68864719,0.00016574,2]
[350669969,1738049778704,-500.0,0.00016574,2]
[350669970,1738049778726,-500.0,0.00016574,2]
[350669971,1738049778747,-502.20286388,0.00016574,2]
[350669972,1738049778769,-500.0,0.00016574,2]
[350669973,1738049778791,-501.86178274,0.00016574,2]
[350669974,1738049778811,-563.06385797,0.00016574,2]
[350669975,1738049778833,-500.0,0.00016574,2]
[350669976,1738049778856,-500.0,0.00016574,2]
[350669977,1738049778878,-500.0,0.00016574,2]
[350669978,1738049778900,-500.0,0.00016574,2]
[350669979,1738049778922,-500.0,0.00016574,2]
[350669980,1738049778944,-500.0,0.00016574,2]
[350669981,1738049778967,-501.37350731,0.00016574,2]
[350669982,1738049778988,-2050.7570499,0.00016707,2]
[350669983,1738049779010,-290.57425814,0.00016711,2]
[350669984,1738049779034,-500.0,0.00016711,2]
[350669985,1738049779055,-500.0,0.00016711,2]
[350669986,1738049779078,-500.0,0.00016711,2]
[350669987,1738049779100,-500.0,0.00016848,2]
[350669988,1738049779123,-192.38,0.00016848,2]
[350669989,1738049779145,-545.83214331,0.00016848,2]
[350669990,1738049779168,-500.0,0.00016985,2]
[350669991,1738049779192,-500.0,0.00017122,2]
[350669992,1738049779215,-500.0,0.00017259,2]
[350669993,1738049779242,-1708.31,0.0001726,2]
[350669994,1738049779265,-500.0,0.00017396,2]
[350669995,1738049779290,-1708.31,0.00017397,2]
[350669996,1738049779317,-500.0,0.00017533,2]
[350669997,1738049779345,-1708.31,0.00017534,2]
[350669998,1738049779371,-500.0,0.0001767,2]
[350669999,1738049779398,-1708.31,0.00017671,2]
[350670000,1738049779422,-500.0,0.00017807,2]
[350670001,1738049779450,-1708.31,0.00017808,2]
[350670002,1738049779474,-500.0,0.00017944,2]
[350670003,1738049779503,-461.71450774,0.00017945,2]
[350670004,1738049779533,-1068.27,0.00017945,2]
[350670005,1738049779559,-500.0,0.00017945,2]
[350670006,1738049779585,-1708.31,0.00017945,2]
[350670007,1738049783285,500.0,0.00016574,2]
[350670008,1738049785830,500.0,0.00016574,2]
[350670009,1738049787532,500.0,0.00016574,2]
[350670010,1738049793642,501.6811376,0.00016574,2]
[350670011,1738049794191,500.0,0.00016574,2]
[350670012,1738049794465,500.0,0.00016711,2]
[350670013,1738049794735,500.0,0.00016848,2]
[350670014,1738049795071,500.0,0.00016985,2]
[350670015,1738049801299,500.0,0.00016574,2]
[350670016,1738049803904,500.0,0.00016574,2]
[350670017,1738049804163,500.0,0.00016711,2]
[350670018,1738049805372,500.0,0.00016574,2]
[350670019,1738049805721,500.0,0.00016711,2]
[350670020,1738049810584,500.0,0.00016574,2]
[350670021,1738049817179,558.44328288,0.00016574,2]
[350670022,1738049817241,500.0,0.00016574,2]
[350670023,1738049817503,500.0,0.00016711,2]
[350670024,1738049819472,500.0,0.00016574,2]
[350670025,1738049824698,500.0,0.00016574,2]
[350670026,1738049839788,500.0,0.00016574,2]
[350670027,1738049839920,500.0,0.00016574,2]
[350670028,1738049844217,500.0,0.00016574,2]
[350670029,1738049849162,500.0,0.00016574,2]
[350670030,1738049849548,500.0,0.00016711,2]
[350670031,1738049849796,500.0,0.00016848,2]
[350670032,1738049850066,500.0,0.00016985,2]
[350670033,1738049857647,500.0,0.00016574,2]
[350670034,1738049862386,500.0,0.00016574,2]
[350670035,1738049864049,500.0,0.00016574,2]
[350670036,1738049866007,500.54166861,0.00016574,2]
[350670037,1738049868259,500.0,0.00016574,2]
[350670038,1738049870266,500.0,0.00016574,2]
[350670039,1738049870294,500.0,0.00016574,2]
[350670040,1738049887376,248.27106685,0.00016574,2]
[350670041,1738049890629,500.0,0.00016574,2]
[350670042,1738049891987,625.30064821,0.00016574,2]
[350670043,1738049894631,500.0,0.00016574,2]
[350670044,1738049895442,500.0,0.00016574,2]
[350670046,1738049898157,500.0,0.00016574,2]
[350670047,1738049898494,152.65551917,0.00016711,2]
[350670048,1738049901982,500.0,0.00016574,2]
[350670049,1738049902598,500.0,0.00016574,2]
[350670050,1738049904571,500.0,0.00016574,2]
[350670051,1738049907043,500.0,0.00016574,2]
[350670052,1738049909050,500.0,0.00016574,2]
[350670053,1738049914740,351.94958297,0.00016574,2]
[350670054,1738049926392,500.0,0.00016574,2]
[350670055,1738049928610,500.0,0.00016574,2]
[350670056,1738049930817,500.0,0.00016574,2]
[350670057,1738049934379,500.0,0.00016574,2]
[350670058,1738049934661,500.0,0.00016574,2]
[350670059,1738049938391,243.07315,0.00013973,2]
[350670060,1738049938980,500.0,0.00016574,2]
[350670061,1738049943866,500.0,0.00016574,2]
[350670063,1738049946992,500.0,0.00016574,2]
[350670064,1738049948303,500.0,0.00016574,2]
[350670065,1738049949315,500.0,0.00016574,2]
[350670066,1738049958919,500.0,0.00016574,2]
[350670067,1738049959561,566.49042879,0.00016574,2]
[350670068,1738049961832,500.0,0.00016574,2]
[350670069,1738049965833,500.0,0.00016574,2]
[350670070,1738049975963,500.0,0.00016574,2]
[350670071,1738049979769,500.0,0.00016574,2]
[350670072,1738049981651,500.0,0.00016574,2]
[350670073,1738049983873,500.0,0.00016574,2]
[350670074,1738049988794,510.33517083,0.00016574,2]
[350670075,1738049989784,308.99648245,0.00016574,2]
[350670076,1738049990358,500.0,0.00016574,2]
[350670077,1738049992682,500.0,0.00016574,2]
[350670078,1738049994104,500.0,0.00016574,2]
[350670079,1738049999425,500.0,0.00016574,2]
[350670080,1738050005641,500.0,0.00016574,2]
[350670081,1738050007062,500.0,0.00016574,2]
[350670082,1738050011531,566.81712079,0.00016574,2]
[350670083,1738050017327,500.0,0.00016574,2]
[350670084,1738050018548,500.0,0.00016574,2]
[350670085,1738050018663,577.99437141,0.00016574,2]
[350670086,1738050020935,500.0,0.00016574,2]
[350670087,1738050022109,500.0,0.00016574,2]
[350670088,1738050030055,500.0,0.00016574,2]
[350670089,1738050032634,500.0,0.00016574,2]
[350670090,1738050035977,500.0,0.00016574,2]
[350670091,1738050038252,434.41125741,0.00016574,2]
[350670092,1738050038324,500.0,0.00016574,2]
[350670093,1738050039851,500.0,0.00016574,2]
[350670094,1738050044512,500.0,0.00016574,2]
[350670095,1738050050827,500.0,0.00016574,2]
[350670096,1738050054990,500.0,0.00016574,2]
[350670097,1738050058584,500.0,0.00016574,2]
[350670098,1738050069518,500.0,0.00016574,2]
[350670099,1738050070292,500.0,0.00016574,2]
[350670100,1738050073813,500.0,0.00016574,2]
[350670101,1738050093322,500.0,0.00016574,2]
[350670102,1738050098340,500.0,0.00016574,2]
[350670103,1738050106463,503.75995048,0.00016574,2]
[350670104,1738050113960,500.0,0.00016574,2]
[350670105,1738050114475,500.0,0.00016574,2]
[350670106,1738050117890,500.0,0.00016574,2]
[350670107,1738050121910,200.31799256,0.00016574,2]
[350670108,1738050125563,500.0,0.00016574,2]
[350670109,1738050128008,500.0,0.00016574,2]
[350670110,1738050141660,500.0,0.00016574,2]
[350670111,1738050141899,500.0,0.00016574,2]
[350670112,1738050144045,500.0,0.00016574,2]
[350670113,1738050147917,500.0,0.00016574,2]
[350670114,1738050150581,254.19359234,0.00016574,2]
[350670115,1738050160944,500.0,0.00016574,2]
[350670116,1738050169071,500.0,0.00016574,2]
[350670117,1738050174837,500.0,0.00016574,2]
[350670118,1738050177228,500.0,0.00016574,2]
[350670119,1738050180060,616.05360719,0.00016574,2]
[350670120,1738050180939,500.0,0.00016574,2]
[350670121,1738050182370,500.0,0.00016574,2]
[350670122,1738050187423,500.0,0.00016574,2]
[350670123,1738050189259,500.0,0.00016574,2]
[350670124,1738050197765,500.0,0.00016574,2]
[350670125,1738050199155,500.0,0.00016574,2]
[350670126,1738050206359,500.0,0.00016574,2]
[350670127,1738050218128,294.5507269,0.00016574,2]
[350670128,1738050232229,500.0,0.00016574,2]
[350670129,1738050248122,245.95227687,0.00016574,2]
[350670130,1738050253217,502.61391002,0.00016574,2]
[350670131,1738050264396,500.0,0.00016574,2]
[350670132,1738050269466,505.12756893,0.00016574,2]
[350670133,1738050271487,353.22954228,0.00016574,2]
[350670134,1738050276001,172.59525702,0.00016574,2]
[350670135,1738050281772,503.26534622,0.00016574,2]
[350670136,1738050285597,500.0,0.00016574,2]
[350670137,1738050292235,500.0,0.00016574,2]
[350670138,1738050293109,500.0,0.00016574,2]
[350670139,1738050296523,522.93347728,0.00016574,2]
[350670140,1738050297363,500.0,0.00016574,2]
[350670141,1738050300984,504.73847577,0.00016574,2]
[350670142,1738050302582,500.0,0.00016574,2]
[350670143,1738050302959,500.0,0.00016574,2]
[350670144,1738050304884,500.0,0.00016574,2]
[350670145,1738050307044,501.88317149,0.00016574,2]
[350670146,1738050308029,500.0,0.00016574,2]
[350670147,1738050312369,512.90886928,0.00016574,2]
[350670148,1738050314578,516.57576973,0.00016574,2]
[350670149,1738050318511,541.66116237,0.00016574,2]
[350670150,1738050322698,349.17482946,0.00016574,2]
[350670151,1738050326789,500.0,0.00016574,2]
[350670152,1738050329789,500.0,0.00016574,2]
[350670153,1738050330858,500.0,0.00016574,2]
[350670154,1738050335536,500.0,0.00016574,2]
[350670155,1738050343122,511.98444303,0.00016574,2]
[350670156,1738050372806,188.37135637,0.00016574,2]
[350670157,1738050378003,500.0,0.00016574,2]
[350670158,1738050379934,500.0,0.00016574,2]
[350670159,1738050392393,500.0,0.00016574,2]
[350670160,1738050424029,24900.0,0.00016053,2]
[350670161,1738050427781,500.0,0.00016574,2]
[350670162,1738050432984,500.0,0.00016574,2]
[350670163,1738050436218,-347.34448083,0.00016711,2]
[350670164,1738050436247,-500.0,0.00016711,2]
[350670165,1738050436268,-8.04263719,0.00016711,2]
[350670166,1738050441148,-491.95736281,0.00016711,2]
[350670167,1738050441172,-483.16465746,0.00016711,2]
[350670168,1738050627506,294.5507269,0.00016574,2]
[350670199,1738050632171,-16.83534254,0.00016711,2]
[350670200,1738050632181,-500.0,0.00016711,2]
[350670201,1738050632191,-500.0,0.00016711,2]
[350670202,1738050632200,-500.0,0.00016711,2]
[350670203,1738050632209,-500.0,0.00016711,2]
[350670204,1738050632219,-500.0,0.00016711,2]
[350670205,1738050632228,-500.0,0.00016711,2]
[350670206,1738050632237,-500.0,0.00016711,2]
[350670207,1738050632247,-500.0,0.00016711,2]
[350670208,1738050632256,-500.0,0.00016711,2]
[350670209,1738050632265,-500.0,0.00016711,2]
[350670210,1738050632275,-500.0,0.00016711,2]
[350670211,1738050632284,-500.0,0.00016711,2]
[350670212,1738050632294,-500.0,0.00016711,2]
[350670213,1738050632303,-500.0,0.00016711,2]
[350670214,1738050632312,-500.0,0.00016711,2]
[350670215,1738050632322,-500.0,0.00016711,2]
[350670216,1738050632331,-502.43,0.00016711,2]
[350670217,1738050632342,-219.34642532,0.00016711,2]
[350670218,1738050632351,-500.0,0.00016711,2]
[350670219,1738050632361,-500.0,0.00016711,2]
[350670220,1738050632370,-500.0,0.00016711,2]
[350670221,1738050632380,-500.0,0.00016711,2]
[350670222,1738050632390,-513.04778202,0.00016847,2]
[350670223,1738050632399,-500.0,0.00016847,2]
[350670224,1738050632408,-500.0,0.00016847,2]
[350670225,1738050632417,-500.0,0.00016847,2]
[350670226,1738050632427,-500.0,0.00016847,2]
[350670227,1738050632437,-500.0,0.00016847,2]
[350670228,1738050632448,-500.0,0.00016847,2]
[350670229,1738050632458,-500.0,0.00016847,2]
[350670230,1738050632469,-500.0,0.00016847,2]
[350670231,1738050632478,-500.0,0.00016847,2]
[350670232,1738050632487,-500.0,0.00016847,2]
[350670233,1738050632497,-500.0,0.00016847,2]
[350670234,1738050632507,-500.0,0.00016847,2]
[350670235,1738050632517,-776.54,0.00016847,2]
[350670236,1738050632527,-500.0,0.00016847,2]
[350670237,1738050632537,-500.0,0.00016847,2]
[350670238,1738050632546,-500.0,0.00016847,2]
[350670239,1738050632556,-500.0,0.00016847,2]
[350670240,1738050632567,-671.61,0.00016847,2]
[350670241,1738050632578,-500.0,0.00016848,2]
[350670242,1738050632590,-500.0,0.00016848,2]
[350670243,1738050632600,-500.0,0.00016848,2]
[350670244,1738050632609,-259.3197886,0.00016848,2]
[350670245,1738050632618,-500.0,0.00016848,2]
[350670246,1738050632628,-500.0,0.00016848,2]
[350670247,1738050632638,-500.0,0.00016848,2]
[350670248,1738050632648,-500.0,0.00016848,2]
[350670249,1738050632658,-500.0,0.00016848,2]
[350670250,1738050632667,-500.0,0.00016848,2]
[350670251,1738050632676,-500.0,0.00016848,2]
[350670252,1738050632686,-500.0,0.00016848,2]
[350670253,1738050632695,-590.70853937,0.00016848,2]